bitfinex-derivatives/quotes_ETHF0:USTF0_20251107
["timestamp","ask_amount","ask_price","bid_price","bid_amount"]
[1762543681782,0.00807758,3426.8,3426.7,0.47307]
[1762543682287,0.24907758,3426.8,3426.7,0.47307]
[1762543683781,0.00807758,3426.8,3426.7,0.47307]
[1762543687495,1.03952196,3428.4,3426.7,22.7158]
[1762543687678,0.137,3429.0,3427.5,2.09370811]
[1762543687880,0.72262268,3428.9,3428.4,0.47284]
[1762543688089,0.3849,3428.5,3428.4,0.47284]
[1762543688386,0.38767936,3428.5,3428.4,0.47642964]
[1762543688584,0.241,3428.2,3428.1,0.47287]
[1762543689096,0.38767936,3428.5,3428.4,0.47284]
[1762543689391,0.38767936,3428.5,3427.0,8.878]
[1762543689392,0.241,3428.3,3428.2,0.47285]
[1762543689588,0.241,3428.3,3428.2,0.00369908]
[1762543689995,0.241,3428.3,3428.2,0.47656908]
[1762543692495,0.14667936,3428.5,3428.4,0.47284]
[1762543692698,0.38767936,3428.5,3428.4,0.47284]
[1762543692994,0.241,3428.3,3428.2,0.00369908]
[1762543693584,0.241,3428.3,3428.2,0.47656908]
[1762543695791,2.84567936,3428.5,3428.4,0.47284]
[1762543696085,3.08667936,3428.5,3428.4,0.47284]
[1762543696482,0.38767936,3428.5,3428.4,0.47284]
[1762543696684,0.00277936,3428.5,3428.4,0.47284]
[1762543698094,0.00437515,3428.8,3428.7,0.4728]
[1762543698491,0.24537515,3428.8,3428.7,0.4728]
[1762543698995,0.00651368,3428.8,3428.7,0.4728]
[1762543713809,0.24291368,3428.8,3428.7,0.4728]
[1762543714815,0.00651368,3428.8,3428.4,0.00437515]
[1762543715008,0.1363,3428.5,3428.4,0.47721515]
[1762543716209,0.2364,3427.9,3427.8,0.23611299]
[1762543716802,0.2364,3427.9,3426.9,2.09370811]
[1762543717005,0.2364,3427.9,3427.8,0.47292]
[1762543717208,0.2364,3427.9,3427.8,0.47528813]
[1762543717613,0.2364,3427.9,3427.8,0.00236813]
[1762543717811,0.2364,3427.9,3427.8,0.47528813]
[1762543718007,0.2364,3427.9,3427.8,0.00236813]
[1762543718406,0.2364,3427.9,3427.8,0.47528813]
[1762543718907,0.1363,3428.0,3427.9,0.47291]
[1762543719310,0.3727,3428.0,3427.9,0.47291]
[1762543720814,0.1363,3428.0,3427.9,0.47291]
[1762543721018,0.1363,3428.5,3428.4,0.47284]
[1762543721717,0.00651368,3428.8,3428.7,0.4728]
[1762543724912,0.25591368,3428.8,3428.7,0.4728]
[1762543725110,0.2494,3428.7,3428.6,0.4728]
[1762543725316,0.1383,3428.0,3427.9,0.47291]
[1762543726017,0.3877,3428.0,3427.9,0.47291]
[1762543728212,0.1383,3428.0,3427.9,0.47291]
[1762543730319,0.3877,3428.0,3427.9,0.47291]
[1762543731016,0.1383,3428.0,3427.9,0.47291]
[1762543732915,0.00651368,3428.8,3428.7,0.6068]
[1762543733720,0.25591368,3428.8,3428.7,0.4728]
[1762543735018,0.9756534,3428.8,3428.7,0.4728]
[1762543735220,0.25591368,3428.8,3428.7,0.4728]
[1762543736214,0.9756534,3428.8,3428.7,0.4728]
[1762543736411,0.25591368,3428.8,3428.7,0.4728]
[1762543737525,0.72869368,3428.8,3428.7,0.4728]
[1762543737720,0.1402,3428.0,3427.8,0.00236813]
[1762543738110,0.1402,3428.0,3427.9,0.47291]
[1762543738315,0.3663,3428.0,3427.9,0.47291]
[1762543738822,0.1402,3428.0,3427.9,0.47291]
[1762543739319,0.3663,3428.0,3427.9,0.47291]
[1762543740117,0.1402,3428.0,3427.9,0.60671]
[1762543742824,0.3663,3428.5,3428.4,0.47284]
[1762543744516,0.2261,3428.4,3428.3,0.47285]
[1762543744826,0.2261,3428.2,3428.1,0.47288]
[1762543745024,0.94587988,3428.4,3428.3,0.47285]
[1762543745326,0.71977988,3428.4,3428.3,0.60665]
[1762543746023,0.94587988,3428.4,3428.3,0.60665]
[1762543746918,0.71977988,3428.4,3428.3,0.60665]
[1762543747124,0.94587988,3428.4,3428.3,0.47285]
[1762543747826,0.1402,3428.0,3427.9,0.60671]
[1762543749026,0.3663,3428.0,3427.9,0.47291]
[1762543750426,0.1402,3428.0,3427.9,0.60671]
[1762543750821,0.3663,3428.0,3427.9,0.47291]
[1762543751627,0.1402,3428.0,3427.9,0.60671]
[1762543752029,0.72209035,3428.4,3428.3,0.47285]
[1762543752231,0.2261,3427.9,3427.8,0.00236813]
[1762543752421,0.2261,3427.9,3427.8,0.47528813]
[1762543753422,0.2261,3427.9,3427.8,0.00236813]
[1762543753618,1.42096245,3427.9,3427.8,0.00236813]
[1762543755826,0.94805245,3427.9,3427.8,0.47528813]
[1762543756227,0.72195245,3427.9,3427.8,0.60908813]
[1762543756428,0.94805245,3427.9,3427.8,0.47528813]
[1762543757420,0.94805245,3427.9,3427.8,0.00236813]
[1762543757722,0.94805245,3427.9,3427.8,0.47528813]
[1762543757917,1.42096245,3427.9,3427.8,0.47528813]
[1762543758121,0.3663,3427.5,3427.4,0.47298]
[1762543758522,0.3663,3427.5,3425.6,3.61848277]
[1762543758523,0.1402,3426.5,3425.9,2.09370811]
[1762543758718,0.3663,3426.5,3426.4,0.47311]
[1762543758923,0.3663,3426.5,3425.8,2.09370811]
[1762543759125,0.37067515,3426.5,3426.4,0.47311]
[1762543759423,0.14457515,3426.5,3426.4,0.60691]
[1762543760834,0.00437515,3426.5,3426.4,0.60691]
[1762543761131,0.14457515,3426.5,3426.4,0.60691]
[1762543761535,0.00437515,3426.5,3426.4,0.60691]
[1762543764639,0.85936885,3427.5,3426.9,0.1338]
[1762543764826,0.1402,3427.5,3426.0,2.09370811]
[1762543765026,0.2261,3427.4,3427.3,0.47299]
[1762543766041,0.2261,3427.3,3427.2,0.473]
[1762543766233,0.61318,3427.5,3427.0,0.47740515]
[1762543766234,0.2361,3427.1,3427.0,0.47740515]
[1762543766439,0.2361,3427.1,3427.0,0.00437515]
[1762543767842,0.2361,3427.1,3427.0,0.47740515]
[1762543778660,0.70912,3427.1,3427.0,0.47740515]
[1762543778862,0.2361,3427.1,3427.0,0.47740515]
[1762543781059,0.95832226,3427.1,3427.0,0.47740515]
[1762543781453,0.2361,3427.1,3427.0,0.47740515]
[1762543781655,1.43133874,3427.1,3427.0,0.47740515]
[1762543782251,0.95831874,3427.1,3427.0,0.47740515]
[1762543782452,0.2321,3426.4,3425.9,2.09370811]
[1762543782652,0.00218126,3426.4,3426.3,0.61333]
[1762543783660,0.00218126,3426.4,3426.3,0.47313]
[1762543784058,0.00218126,3426.4,3426.3,0.61333]
[1762543792567,0.1402,3427.5,3427.4,0.61098]
[1762543792766,0.72383737,3427.8,3427.6,0.61095]
[1762543793065,1.51236196,3428.4,3427.6,0.61095]
[1762543793260,0.7235231,3428.3,3427.6,0.61095]
[1762543793462,0.00798229,3427.7,3427.6,0.61095]
[1762543793664,0.00798229,3427.7,3427.0,2.09823088]
[1762543793665,0.1498,3428.5,3428.4,0.61084]
[1762543793968,0.3819,3428.5,3428.4,0.61084]
[1762543794170,0.3819,3428.5,3427.5,0.138]
[1762543794573,0.38501343,3428.5,3427.5,0.14106349]
[1762543794768,0.3819,3428.0,3427.9,0.4729]
[1762543795168,0.2321,3427.6,3427.5,0.00306349]
[1762543795372,0.2321,3427.6,3427.5,0.47602349]
[1762543795568,0.3819,3428.0,3427.9,0.47291]
[1762543796077,0.3819,3428.0,3427.5,0.00306349]
[1762543796273,0.2359,3427.6,3427.5,0.00306349]
[1762543796475,0.2359,3427.6,3427.5,0.47602349]
[1762543799476,0.1498,3428.0,3427.5,0.14106349]
[1762543799680,0.3857,3428.0,3427.9,0.47291]
[1762543800167,0.1498,3428.0,3427.9,0.61091]
[1762543800373,1.03952196,3429.4,3427.9,2.378]
[1762543800578,0.47263,3429.9,3429.3,0.47271]
[1762543800870,0.2359,3429.3,3429.2,0.47273]
[1762543801476,0.00349803,3429.3,3429.2,0.47273]
[1762543801676,0.00349803,3429.3,3429.2,0.61073]
[1762543801982,0.3834,3429.0,3428.9,0.00437515]
[1762543802379,0.2359,3427.8,3427.7,0.47292]
[1762543802682,0.1475,3428.5,3427.9,0.234]
[1762543802985,0.1475,3428.5,3428.3,0.47285]
[1762543802986,0.2359,3428.4,3428.3,0.47285]
[1762543803378,0.2359,3428.8,3428.7,0.47278]
[1762543803583,0.3834,3428.5,3428.4,0.47284]
[1762543803780,0.3834,3428.5,3428.0,0.14297515]
[1762543803978,0.2359,3428.4,3428.3,0.47284]
[1762543804277,0.1475,3428.5,3428.0,0.00437515]
[1762543804278,0.2359,3428.1,3428.0,0.00437515]
[1762543804871,0.70878,3428.1,3428.0,0.00437515]
[1762543805076,0.2359,3428.1,3428.0,0.47726515]
[1762543805982,0.3834,3428.5,3428.4,0.47284]
[1762543806283,0.2359,3428.5,3428.4,0.47284]
[1762543806687,0.2359,3428.5,3428.0,0.14297515]
[1762543806688,0.70868,3428.8,3428.7,0.47278]
[1762543806882,0.3834,3428.5,3428.4,0.47284]
[1762543807083,0.2359,3428.2,3428.1,0.47288]
[1762543807288,0.3834,3428.5,3428.4,0.47284]
[1762543807488,0.1475,3429.0,3428.0,0.14297515]
[1762543807681,0.2359,3428.9,3428.0,0.14297515]
[1762543807877,0.2359,3428.9,3428.8,0.47278]
[1762543808084,0.00349803,3429.3,3429.2,0.47273]
[1762543808483,0.00349803,3429.3,3429.2,0.70673]
[1762543811191,0.23939803,3429.3,3429.2,0.47273]
[1762543811580,0.00349803,3429.3,3429.2,0.70673]
[1762543811780,0.00437515,3429.6,3429.5,0.84529]
[1762543811984,0.3834,3430.5,3430.3,0.47257]
[1762543812293,0.3834,3430.5,3429.5,0.1386]
[1762543812496,0.2359,3430.1,3430.0,0.47261]
[1762543812688,0.23966039,3430.1,3430.0,0.47525734]
[1762543813088,0.00376039,3430.1,3430.0,0.77005734]
[1762543814193,0.00376039,3430.1,3430.0,0.70925734]
[1762543814584,0.23966039,3430.1,3430.0,0.47525734]
[1762543815193,0.23966039,3430.1,3430.0,0.00264734]
[1762543815584,0.71226039,3430.1,3430.0,0.00264734]
[1762543816294,0.23966039,3430.1,3430.0,0.00264734]
[1762543817291,0.00376039,3430.1,3430.0,0.37524734]
[1762543819488,0.00376039,3430.1,3430.0,0.84786734]
[1762543822388,0.00437515,3430.4,3430.3,0.70657]
[1762543823300,0.00650838,3430.4,3430.3,0.70657]
[1762543825587,0.1475,3431.5,3430.5,0.1348]
[1762543825786,0.2359,3431.4,3431.3,0.47243]
[1762543826199,0.2359,3431.4,3431.1,0.47246]
[1762543826497,0.23815413,3431.4,3431.1,0.47246]
[1762543826702,0.2359,3431.3,3431.2,0.47245]
[1762543828896,0.148,3431.0,3430.5,0.1348]
[1762543829196,0.148,3431.0,3430.9,0.47249]
[1762543829197,0.373,3431.0,3430.9,0.47249]
[1762543830292,0.148,3430.5,3430.0,0.00264734]
[1762543830498,0.148,3431.0,3430.8,0.4725]
[1762543830691,0.225,3430.9,3430.8,0.47251]
[1762543831089,0.148,3431.0,3430.8,0.47251]
[1762543831090,0.148,3431.0,3430.9,0.47249]
[1762543831392,0.373,3431.0,3430.9,0.47249]
[1762543831594,0.225,3430.9,3430.0,0.12194734]
[1762543831794,0.148,3431.0,3430.9,0.47249]
[1762543831997,0.373,3431.0,3430.9,0.47249]
[1762543832395,0.225,3431.2,3431.1,0.47246]
[1762543832596,0.69745,3431.2,3431.1,0.47246]
[1762543833093,0.69745,3431.2,3431.0,0.47248]
[1762543833094,0.47247,3431.1,3431.0,0.47248]
[1762543833299,1.40238442,3431.1,3431.0,0.47248]
[1762543833498,0.225,3430.9,3430.8,0.4725]
[1762543834295,0.373,3431.0,3430.9,0.47249]
[1762543834694,0.225,3430.8,3430.7,0.47252]
[1762543835598,0.69751,3430.8,3430.7,0.47252]
[1762543835802,0.225,3430.8,3430.7,0.47252]
[1762543837193,0.9309504,3430.8,3430.7,0.47252]
[1762543837595,0.7059504,3430.8,3430.7,0.70232]
[1762543838002,4e-07,3430.8,3430.7,0.70232]
[1762543838199,0.00225413,3431.4,3431.3,0.47244]
[1762543838698,0.00225413,3431.4,3431.3,0.70224]
[1762543845204,1.03952196,3432.4,3432.3,0.7092]
[1762543845396,0.2345,3433.3,3432.5,0.1193]
[1762543845595,0.148,3433.5,3433.4,0.47215]
[1762543845800,0.3825,3433.5,3433.4,0.47215]
[1762543846202,0.3857312,3433.5,3433.4,0.47500214]
[1762543846602,0.0032312,3433.5,3433.4,0.71190214]
[1762543847508,0.3777312,3433.5,3433.4,0.47500214]
[1762543848605,0.0032312,3433.5,3433.4,0.71190214]
[1762543850513,0.00437515,3433.8,3433.7,0.70901]
[1762543850716,0.3745,3433.5,3433.4,0.00285214]
[1762543851212,0.00437515,3433.8,3433.4,0.00285214]
[1762543851414,0.24174602,3433.8,3433.5,0.47212]
[1762543851610,0.2345,3433.5,3433.4,0.00285214]
[1762543851805,0.3745,3433.5,3433.4,0.00285214]
[1762543852204,0.00724602,3433.8,3433.4,0.00285214]
[1762543852414,0.24174602,3433.8,3433.7,0.47211]
[1762543852713,0.00724602,3433.8,3433.7,0.70901]
[1762543855012,0.24174602,3433.8,3433.7,0.47211]
[1762543855815,0.00724602,3433.8,3433.7,0.70901]
[1762543859216,0.24854602,3433.8,3433.7,0.47211]
[1762543860519,0.3861,3433.5,3433.4,0.00285214]
[1762543860713,0.85823,3433.5,3433.4,0.47500214]
[1762543860915,0.85823,3433.5,3433.4,0.00285214]
[1762543861422,0.3861,3433.5,3433.4,0.47500214]
[1762543861613,0.24854602,3433.8,3433.7,0.47211]
[1762543863217,0.00724602,3433.8,3433.7,0.71851]
[1762543863422,0.24854602,3433.8,3433.7,0.47211]
[1762543864217,0.3861,3433.5,3433.4,0.00285214]
[1762543864421,0.3861,3433.5,3433.4,0.47500214]
[1762543864608,0.2413,3433.5,3433.4,0.47500214]
[1762543865023,0.3861,3433.5,3433.4,0.47500214]
[1762543865214,0.24854602,3433.8,3433.7,0.47211]
[1762543865615,0.3861,3433.5,3433.4,0.47500214]
[1762543866217,0.24854602,3433.8,3433.7,0.47211]
[1762543866722,0.00724602,3433.8,3433.7,0.71851]
[1762543867318,0.2413,3434.7,3434.6,0.47198]
[1762543867514,0.3861,3434.5,3434.4,0.472]
[1762543867727,0.71331,3434.4,3434.3,0.47202]
[1762543868022,0.3861,3434.5,3434.4,0.47201]
[1762543868217,0.38958425,3434.5,3434.4,0.47201]
[1762543869823,0.00348425,3434.5,3434.4,0.71841]
[1762543870727,0.00436859,3434.8,3434.7,0.71837]
[1762543871227,0.2413,3435.9,3435.0,0.1193]
[1762543871428,0.9332691,3435.9,3435.8,0.47182]
[1762543871722,0.2413,3435.8,3435.7,0.47182]
[1762543872526,0.3861,3435.5,3435.4,0.47623859]
[1762543872721,0.85796,3435.5,3435.4,0.00436859]
[1762543872920,0.47186,3435.5,3435.4,0.00436859]
[1762543873127,1.1638291,3435.5,3435.4,0.00436859]
[1762543873327,0.85796,3435.5,3435.4,0.00436859]
[1762543873523,0.2413,3434.9,3434.8,0.47195]
[1762543873826,0.47198,3434.7,3434.0,0.1497]
[1762543874032,0.47197,3434.7,3434.4,0.472]
[1762543874527,0.47197,3434.7,3434.5,0.47199]
[1762543874831,0.69235185,3434.9,3434.2,0.00436859]
[1762543875032,0.71332,3434.3,3434.2,0.47640859]
[1762543875333,1.50504519,3434.3,3434.2,0.00436859]
[1762543875934,0.1448,3434.0,3432.6,0.23808268]
[1762543876128,0.69235185,3433.9,3433.8,0.47209]
[1762543877026,0.79173511,3433.9,3433.8,0.47209]
[1762543877225,0.69235185,3433.9,3433.8,0.47209]
[1762543877427,0.69235185,3433.9,3433.8,0.71849]
[1762543877633,0.00436859,3434.2,3434.1,0.47205]
[1762543878331,1.41148081,3434.2,3434.1,0.47205]
[1762543878638,0.93944081,3434.2,3434.1,0.47205]
[1762543878834,0.24566859,3434.2,3434.1,0.47205]
[1762543879030,0.93944081,3434.2,3434.1,0.47205]
[1762543879331,0.69814081,3434.2,3434.1,0.71845]
[1762543879722,0.00436859,3434.2,3434.1,0.71845]
[1762543880235,0.69814081,3434.2,3434.1,0.71845]
[1762543880436,0.00436859,3434.2,3434.1,0.71845]
[1762543881537,0.00436859,3434.2,3434.0,0.1497]
[1762543881538,0.2413,3434.1,3434.0,0.47206]
[1762543881734,0.69820043,3434.2,3434.1,0.47205]
[1762543881928,0.00436859,3434.2,3434.1,0.71845]
[1762543882330,0.69820043,3434.2,3434.1,0.71845]
[1762543882531,0.00436859,3434.2,3434.1,0.71845]
[1762543886531,1.1886732,3435.5,3435.1,0.2297]
[1762543886838,0.69375417,3435.4,3434.5,0.148]
[1762543887037,0.2287,3435.4,3434.5,0.148]
[1762543887340,0.92245295,3435.3,3435.2,0.47189]
[1762543887542,0.2287,3435.3,3435.2,0.47189]
[1762543887741,0.69375295,3435.3,3435.2,0.70159]
[1762543887944,0.2287,3435.4,3435.3,0.47189]
[1762543888243,1.49353809,3435.4,3434.5,0.148]
[1762543888436,0.69359277,3435.3,3435.1,0.4719]
[1762543888638,1.39418277,3435.3,3434.5,0.148]
[1762543888833,0.1383,3435.5,3434.5,0.148]
[1762543888834,0.92229277,3435.2,3435.1,0.4719]
[1762543889136,0.69344607,3435.4,3435.1,0.2297]
[1762543889342,0.69344607,3435.3,3435.1,0.2297]
[1762543889532,0.47187,3435.4,3435.2,0.4719]
[1762543889733,0.6933302,3435.4,3435.2,0.47189]
[1762543890137,0.47188,3435.3,3434.5,0.148]
[1762543890343,0.9220302,3435.4,3435.3,0.47188]
[1762543890940,0.00436859,3435.6,3435.5,0.2297]
[1762543891244,0.23306859,3435.6,3435.5,0.70156]
[1762543891442,0.00436859,3435.6,3435.5,0.70156]
[1762543891642,0.92630448,3435.6,3435.5,0.70156]
[1762543891833,0.92630448,3435.6,3435.5,0.47186]
[1762543892036,0.69760448,3435.6,3435.5,0.84956]
[1762543892235,0.00436859,3435.6,3435.5,0.84956]
[1762543892550,0.2287,3435.4,3435.3,0.47188]
[1762543892939,0.00436859,3435.6,3435.5,0.84956]
[1762543893142,0.00436859,3435.6,3435.5,0.70156]
[1762543893540,0.00436859,3435.6,3435.5,0.84956]
[1762543894144,0.2287,3435.3,3435.2,0.4719]
[1762543894648,0.2287,3435.2,3434.5,0.148]
[1762543894847,0.70061,3435.1,3435.0,0.47191]
[1762543895651,0.2287,3435.1,3434.5,0.148]
[1762543895947,0.2287,3434.7,3434.6,0.47198]
[1762543897343,0.70067,3434.7,3434.6,0.47198]
[1762543897544,0.2287,3434.7,3434.6,0.47198]
[1762543898051,0.2287,3433.6,3433.5,0.47649859]
[1762543898254,0.2287,3433.6,3433.5,0.00436859]
[1762543899346,0.2287,3433.6,3433.5,0.47649859]
[1762543899545,0.70082,3433.6,3433.5,0.00436859]
[1762543900442,0.83913,3433.5,3433.4,0.00285214]
[1762543900648,0.47216,3433.3,3433.1,0.47218]
[1762543900849,0.2441,3433.2,3433.1,0.47218]
[1762543901649,0.71832937,3433.2,3433.1,0.47581022]
[1762543902150,0.71832937,3433.2,3433.1,0.00363022]
[1762543902352,1.41412284,3433.2,3433.1,0.00363022]
[1762543902752,0.71632,3432.9,3432.8,0.00436859]
[1762543903146,0.71632,3432.9,3432.8,0.47659859]
[1762543903649,0.2441,3432.9,3432.8,0.48025504]
[1762543903856,0.71632,3432.9,3432.8,0.00802504]
[1762543905356,0.71643,3432.1,3432.0,0.47233]
[1762543905558,0.2441,3432.1,3432.0,0.47233]
[1762543905752,0.71638,3432.4,3432.3,0.47229]
[1762543906052,0.71641,3432.2,3431.5,0.0325]
[1762543906258,0.85165,3432.0,3431.9,0.47235]
[1762543906554,0.2441,3431.9,3431.8,0.47237]
[1762543906747,0.2441,3431.9,3431.5,0.00656194]
[1762543906947,0.2441,3431.8,3431.7,0.47237]
[1762543907354,0.3793,3432.0,3431.9,0.47235]
[1762543908075,0.71641,3432.3,3432.2,0.4723]
[1762543908757,0.85157,3432.5,3432.4,0.47228]
[1762543908948,0.47227,3432.5,3432.4,0.69858]
[1762543909153,0.47227,3432.5,3432.0,0.1422]
[1762543909154,0.71638,3432.6,3432.5,0.47227]
[1762543909453,0.47233,3432.2,3432.1,0.47232]
[1762543909657,0.71643,3432.1,3432.0,0.47233]
[1762543909957,0.85164,3432.0,3431.9,0.47235]
[1762543910561,0.71647,3431.9,3431.8,0.47235]
[1762543910764,0.2441,3431.9,3431.8,0.47235]
[1762543910955,0.71648,3431.7,3431.6,0.47238]
[1762543911156,0.71645,3431.9,3431.8,0.47235]
[1762543911358,0.2441,3431.6,3431.5,0.00656194]
[1762543911654,0.2441,3431.6,3431.5,0.47897194]
[1762543911850,0.47239,3431.6,3431.5,0.00656194]
[1762543912055,0.71649,3431.6,3431.5,0.00656194]
[1762543912450,0.47239,3431.6,3431.5,0.00656194]
[1762543912657,0.71649,3431.6,3431.5,0.00656194]
[1762543912963,0.47239,3431.7,3431.6,0.47239]
[1762543913363,0.2441,3431.8,3431.7,0.47238]
[1762543913858,0.1352,3432.0,3431.9,0.47235]
[1762543914063,0.1352,3432.5,3432.4,0.47228]
[1762543914363,0.47226,3432.6,3432.5,0.47226]
[1762543914765,0.71636,3432.6,3432.5,0.47226]
[1762543914964,0.2441,3432.6,3432.5,0.47226]
[1762543915467,0.71637,3432.6,3432.5,0.47226]
[1762543916066,0.47224,3432.8,3432.7,0.47224]
[1762543916262,0.70334,3432.8,3432.7,0.47224]
[1762543916561,0.47228,3432.6,3432.5,0.47227]
[1762543916760,0.2311,3432.6,3432.5,0.47227]
[1762543916961,0.70333,3432.8,3432.7,0.47224]
[1762543917161,0.70336,3432.7,3432.6,0.47226]
[1762543918561,0.47227,3432.5,3432.4,0.47227]
[1762543919067,0.2311,3432.7,3432.6,0.47225]
[1762543919255,0.70334,3432.7,3432.6,0.47225]
[1762543919663,0.6074,3433.0,3432.9,0.47222]
[1762543919962,0.47219,3433.1,3433.0,0.4722]
[1762543920554,0.70329,3433.1,3433.0,0.4722]
[1762543920753,0.2311,3433.1,3433.0,0.4722]
[1762543920958,0.00205937,3433.2,3433.1,0.70749]
[1762543921364,0.00436859,3433.5,3433.4,0.70745]
[1762543922566,0.00754111,3433.5,3433.4,0.47215]
[1762543922762,0.00754111,3433.5,3433.4,0.70745]
[1762543931979,4.111e-05,3433.5,3433.4,0.70745]
[1762543932169,1.41757594,3434.5,3433.5,0.0308]
[1762543932374,0.70373591,3434.4,3434.3,0.47202]
[1762543932678,1.40684591,3434.4,3434.3,0.47202]
[1762543932867,0.70373591,3434.4,3433.5,0.0308]
[1762543933073,0.2311,3434.2,3434.1,0.47205]
[1762543933667,0.00436859,3434.3,3434.2,0.70734]
[1762543935882,0.23546859,3434.3,3434.2,0.47204]
[1762543936178,0.00436859,3434.3,3434.2,0.47204]
[1762543936476,0.1463,3434.0,3433.6,0.00436859]
[1762543936780,0.3774,3434.0,3433.9,0.47208]
[1762543937578,0.2311,3433.7,3433.6,0.00436859]
[1762543937779,0.70321,3433.7,3433.6,0.47648859]
[1762543938570,0.70321,3433.7,3433.6,0.00436859]
[1762543938877,0.2311,3433.7,3433.6,0.00436859]
[1762543939088,0.2311,3433.7,3433.6,0.47648859]
[1762543939582,0.84942147,3434.0,3433.9,0.47208]
[1762543939778,0.1463,3434.0,3433.9,0.47208]
[1762543939987,0.3774,3434.0,3433.9,0.47208]
[1762543940880,0.47638859,3434.3,3434.0,0.47205]
[1762543941078,0.2311,3434.1,3434.0,0.47205]
[1762543941379,0.3774,3434.0,3433.9,0.47207]
[1762543942085,0.2311,3433.7,3433.6,0.47648859]
[1762543942384,0.84946,3434.0,3433.9,0.47208]
[1762543942587,0.3774,3434.0,3433.9,0.47208]
[1762543942880,0.84946,3434.0,3433.9,0.47208]
[1762543943185,0.7032,3433.9,3433.8,0.47209]
[1762543943479,0.70321,3433.7,3433.6,0.47647859]
[1762543943685,0.70321,3433.7,3433.6,0.00436859]
[1762543943986,0.70321,3433.7,3433.6,0.47648859]
[1762543944282,1.40797618,3433.7,3433.6,0.00436859]
[1762543944689,1.51392435,3433.7,3433.6,0.00436859]
[1762543944880,1.51392435,3433.7,3433.6,0.47648859]
[1762543945087,0.70476618,3433.7,3433.6,0.71178859]
[1762543945283,0.47209,3433.9,3433.6,0.71178859]
[1762543945284,0.47209,3433.9,3433.8,0.47209]
[1762543945486,1.28354955,3433.9,3433.8,0.47209]
[1762543945695,1.51464955,3433.9,3433.8,0.47209]
[1762543946196,0.7054658,3433.9,3433.8,0.70739]
[1762543946496,0.1463,3434.0,3433.9,0.47208]
[1762543946987,0.85199502,3434.0,3433.9,0.47208]
[1762543947694,0.85199502,3434.0,3433.9,0.70798]
[1762543947892,0.71545,3434.2,3434.1,0.47205]
[1762543948094,1.52761216,3434.2,3434.1,0.47205]
[1762543948395,0.81216216,3434.2,3434.1,0.70795]
[1762543948888,1.52760216,3434.2,3434.1,0.47205]
[1762543949082,1.52806392,3434.2,3434.1,0.47205]
[1762543949793,1.52822899,3434.2,3434.1,0.47205]
[1762543952992,1.05618899,3434.2,3434.1,0.47205]
[1762543953195,0.9499241,3434.2,3434.1,0.47205]
[1762543953598,1.05622445,3434.2,3434.1,0.47205]
[1762543954097,1.05707781,3434.2,3434.1,0.47205]
[1762543954495,1.52911781,3434.2,3434.1,0.47205]
[1762543954994,0.95077746,3434.2,3434.1,0.47205]
[1762543955500,0.70737746,3434.2,3434.1,0.70795]
[1762543956591,0.00436859,3434.3,3434.2,0.70794]
[1762543956795,0.24776859,3434.3,3434.2,0.47204]
[1762543956996,1.18361253,3434.3,3433.6,0.00436859]
[1762543957194,0.70722394,3434.2,3433.6,0.00436859]
[1762543957498,0.95062394,3434.2,3434.1,0.70795]
[1762543957797,0.00436859,3434.3,3434.2,0.47204]
[1762543958002,0.71159187,3434.3,3434.2,0.47204]
[1762543958400,0.71159187,3434.3,3434.2,0.70794]
[1762543958596,0.47638859,3434.3,3434.2,0.70794]
[1762543958795,0.71159187,3434.3,3434.2,0.70794]
[1762543958999,0.47638859,3434.3,3434.2,0.70794]
[1762543959199,1.18361187,3434.3,3434.2,0.70794]
[1762543959400,0.71159187,3434.3,3434.2,0.70794]
[1762543959898,0.00436859,3434.3,3434.2,0.70794]
[1762543962296,0.24776859,3434.3,3434.2,0.70794]
[1762543962504,0.95499187,3434.3,3434.2,0.47204]
[1762543962700,0.24776859,3434.3,3434.2,0.47204]
[1762543963401,0.00436859,3434.3,3434.2,0.70324]
[1762543966204,1.0438732,3435.5,3435.4,0.70307]
[1762543966406,0.70602264,3435.5,3435.4,0.70307]
[1762543966597,0.95540162,3435.9,3435.8,0.47182]
[1762543967004,0.70600162,3435.9,3435.8,0.47182]
[1762543967304,0.2494,3435.7,3435.6,0.47184]
[1762543967503,0.72123,3435.7,3435.6,0.47184]
[1762543967704,0.2494,3435.6,3435.5,0.47622859]
[1762543968005,0.2494,3435.6,3435.5,0.70742859]
[1762543968208,0.72122,3435.8,3435.7,0.47183]
[1762543968508,1.42611162,3435.8,3435.7,0.47183]
[1762543968905,1.42611162,3435.8,3435.5,0.00436859]
[1762543968906,0.47184,3435.6,3435.5,0.00436859]
[1762543969112,0.72124,3435.6,3435.5,0.00436859]
[1762543969303,1.42613162,3435.6,3435.5,0.00436859]
[1762543969911,1.42613162,3435.6,3435.5,0.47622859]
[1762543971206,1.42613162,3435.6,3435.5,0.00436859]
[1762543971907,0.4719,3435.2,3434.5,0.1499]
[1762543972108,0.7213,3435.2,3435.1,0.47191]
[1762543972913,0.2494,3435.2,3435.1,0.47191]
[1762543973210,0.7213,3435.2,3435.1,0.47191]
[1762543973800,0.2494,3435.2,3435.1,0.47191]
[1762543974008,0.47187,3435.4,3435.3,0.47189]
[1762543974214,0.86646,3435.5,3435.4,0.47187]
[1762543974513,1.09922267,3435.5,3435.4,0.47187]
[1762543974707,1.57108267,3435.5,3435.4,0.47187]
[1762543976407,0.2268,3435.1,3435.0,0.2415]
[1762543976609,0.4719,3435.3,3435.1,0.4719]
[1762543976806,0.6987,3435.2,3435.1,0.4719]
[1762543977207,1.40332267,3435.2,3435.1,0.4719]
[1762543981122,0.2268,3434.9,3434.8,0.47631859]
[1762543981316,0.69874,3434.9,3434.8,0.00436859]
[1762543981515,1.40336267,3434.9,3434.8,0.00436859]
[1762543981723,0.47204,3434.2,3434.1,0.2415]
[1762543982015,0.69881,3434.4,3434.3,0.47201]
[1762543982322,1.40419169,3434.4,3434.3,0.47201]
[1762543982721,0.2268,3434.2,3434.1,0.47205]